[Event "WYCC 2018 G14"]
[Site "Halkidiki"]
[Date "2018.10.27"]
[Round "8"]
[White "Sim, Jia Ru"]
[Black "Dimitrijevic, Andjela"]
[Result "1-0"]
[ECO "B50"]
[WhiteElo "1979"]
[BlackElo "1744"]
[Annotator "NA"]
[PlyCount "101"]
[EventDate "2018.10.20"]
[EventType "swiss"]
[EventCountry "GRE"]
[SourceTitle "playchess.com"]
[Source "ChessBase"]
[SourceQuality "1"]
[TimeControl "40/5400+30:1800+30"]

1. e4 {[%emt 0:00:00]} c5 {[%emt 0:00:00]} 2. Nf3 {[%emt 0:00:00]} d6 {[%emt 0:00:00]} 3. c3 {[%emt 0:00:00]} Nf6 {[%emt 0:00:12]} 4. Be2 {[%emt 0:00:00]} g6 {[%emt 0:00:29]} 5. O-O {[%emt 0:00:30]} Bg7 {[%emt 0:00:28]} 6. Bb5+ {[%emt 0:00:12]} Nc6 {[%emt 0:00:57]} 7. d4 {[%emt 0:04:19]} Qb6 {[%emt 0:01:19]} 8. a4 {[%emt 0:24:03]} cxd4 9. cxd4 {[%emt 0:00:30]} a6 {[%emt 0:38:41]} 10. Bxc6+ {[%emt 0:00:53]} Qxc6 {[%emt 0:07:28]} 11. d5 {[%emt 0:23:53]} Qc7 {[%emt 0:06:24]} 12. Nc3 {[%emt 0:02:57]} Bg4 {[%emt 0:07:32]} 13. h3 {[%emt 0:04:04]} Bxf3 {[%emt 0:04:07]} 14. Qxf3 {[%emt 0:00:07]} Nd7 {[%emt 0:03:40]} 15. Bf4 {[%emt 0:14:24]} O-O {[%emt 0:02:35]} 16. Rfc1 {[%emt 0:02:04]} Rfc8 {[%emt 0:04:35]} 17. Qe2 {[%emt 0:03:01]} Ne5 {[%emt 0:07:37]} 18. Bxe5 {[%emt 0:08:02]} Bxe5 {[%emt 0:00:10]} 19. Qd2 {[%emt 0:00:18]} Qa5 {[%emt 0:04:19]} 20. Ra3 {[%emt 0:03:17]} Rc4 {[%emt 0:07:25]} 21. f3 {[%emt 0:02:02]} Bxc3 {[%emt 0:01:18]} 22. Raxc3 {[%emt 0:04:17]} Rxa4 {[%emt 0:00:53]} 23. Kh2 {[%emt 0:01:04]} Rc4 {[%emt 0:00:33]} 24. Qg5 {[%emt 0:01:01]} Rxc3 {[%emt 0:00:17]} 25. Rxc3 {[%emt 0:00:06]} Qd8 {[%emt 0:00:41]} 26. f4 {[%emt 0:00:40]} Qd7 {[%emt 0:00:30]} 27. f5 {[%emt 0:00:23]} Kg7 {[%emt 0:00:32]} 28. Rf3 {[%emt 0:00:33]} f6 {[%emt 0:00:25]} 29. Qg3 {[%emt 0:00:23]} g5 {[%emt 0:00:25]} 30. h4 {[%emt 0:00:26]} h6 {[%emt 0:00:21]} 31. Qg4 {[%emt 0:00:29]} Rh8 {[%emt 0:00:50]} 32. Qg3 {[%emt 0:01:19]} Kf7 {[%emt 0:00:26]} 33. Qh3 {[%emt 0:00:21]} Kg7 {[%emt 0:00:36]} 34. Rg3 {[%emt 0:00:39]} Qc7 {[%emt 0:00:34]} 35. Rc3 {[%emt 0:00:33]} Qd7 {[%emt 0:00:18]} 36. Qg3 {[%emt 0:00:20]} Kf7 {[%emt 0:00:38]} 37. Qh3 {[%emt 0:00:14]} Kg7 {[%emt 0:00:16]} 38. Qg3 {[%emt 0:00:12]} Qd8 {[%emt 0:00:45]} 39. Qf3 {[%emt 0:01:02]} Qd7 {[%emt 0:00:36]} 40. Qh5 {[%emt 0:00:00]} Qd8 {[%emt 0:00:00]} 41. Qg6+ {[%emt 0:01:43]} Kf8 {[%emt 0:01:40]} 42. Rh3 {[%emt 0:04:35]} Qb6 {[%emt 0:24:00]} 43. hxg5 {[%emt 0:00:46]} fxg5 {[%emt 0:01:03]} 44. f6 {[%emt 0:02:06]} exf6 {[%emt 0:03:54]} 45. Qxf6+ {[%emt 0:00:06]} Kg8 {[%emt 0:00:42]} 46. Qg6+ {[%emt 0:00:05]} Kf8 {[%emt 0:00:22]} 47. Rf3+ {[%emt 0:00:05]} Ke7 {[%emt 0:00:47]} 48. Qg7+ {[%emt 0:00:07]} Kd8 {[%emt 0:00:09]} 49. Qxh8+ {[%emt 0:00:04]} Ke7 {[%emt 0:00:23]} 50. Qg7+ {[%emt 0:00:09]} Ke8 {[%emt 0:00:13]} 51. Rf8# {[%emt 0:00:04]} 1-0

[Event "WYCC 2018 G14"]
[Site "Halkidiki"]
[Date "2018.10.27"]
[Round "8"]
[White "Hrebenshchykova, Yelyzaveta"]
[Black "Kostina, Veronika"]
[Result "1-0"]
[ECO "C07"]
[WhiteElo "1968"]
[BlackElo "1700"]
[Annotator "NA"]
[PlyCount "69"]
[EventDate "2018.10.20"]
[EventType "swiss"]
[EventCountry "GRE"]
[SourceTitle "playchess.com"]
[Source "ChessBase"]
[SourceQuality "1"]
[TimeControl "40/5400+30:1800+30"]

1. e4 {[%emt 0:00:00]} e6 {[%emt 0:00:12]} 2. d4 {[%emt 0:00:00]} d5 {[%emt 0:00:54]} 3. Nd2 {[%emt 0:00:00]} c5 {[%emt 0:01:06]} 4. exd5 {[%emt 0:00:14]} Qxd5 {[%emt 0:00:58]} 5. Ngf3 {[%emt 0:00:07]} cxd4 {[%emt 0:01:02]} 6. Bc4 {[%emt 0:00:10]} Qd6 {[%emt 0:00:43]} 7. O-O {[%emt 0:00:08]} Nf6 {[%emt 0:00:56]} 8. Nb3 {[%emt 0:00:06]} Nc6 {[%emt 0:00:54]} 9. Nbxd4 {[%emt 0:00:14]} Nxd4 {[%emt 0:00:27]} 10. Nxd4 {[%emt 0:00:06]} a6 {[%emt 0:03:48]} 11. b3 {[%emt 0:04:00]} Qc7 {[%emt 0:07:52]} 12. Bb2 $11 {[%emt 0:01:01]} Bd7 {[%emt 0:04:55]} 13. Qe2 {[%emt 0:06:20]} O-O-O {[%emt 0:10:08]} 14. Nf3 {[%emt 0:18:23]} Bd6 {[%emt 0:14:55]} 15. Ne5 {[%emt 0:02:47]} Be8 {[%emt 0:11:22]} 16. Rad1 {[%emt 0:07:39]} Qa5 {[%emt 0:15:16]} 17. a3 {[%emt 0:10:21]} Rf8 {[%emt 0:05:41]} 18. b4 {[%emt 0:02:36]} Qc7 {[%emt 0:03:15]} 19. Rd3 {[%emt 0:07:45]} Bxe5 {[%emt 0:02:42]} 20. Bxe5 {[%emt 0:03:04]} Qc6 {[%emt 0:02:42]} 21. Rc3 {[%emt 0:01:24]} Rd7 {[%emt 0:07:11]} 22. Bb3 {[%emt 0:01:19]} Qxc3 {[%emt 0:00:12]} 23. Bxc3 {[%emt 0:00:04]} Rd8 {[%emt 0:01:38]} 24. Be5 {[%emt 0:02:00]} Bb5 {[%emt 0:01:15]} 25. Bc4 {[%emt 0:00:51]} Bc6 {[%emt 0:00:56]} 26. b5 {[%emt 0:01:15]} axb5 {[%emt 0:01:06]} 27. Bxb5 {[%emt 0:00:03]} Bd5 {[%emt 0:00:44]} 28. Qe3 {[%emt 0:01:08]} Ng4 {[%emt 0:00:35]} 29. Qc5+ {[%emt 0:00:13]} Bc6 {[%emt 0:00:12]} 30. Bxc6 {[%emt 0:00:21]} Nxe5 {[%emt 0:00:07]} 31. Be4+ {[%emt 0:00:27]} Nc6 {[%emt 0:00:17]} 32. Bxc6 {[%emt 0:00:05]} bxc6 {[%emt 0:00:04]} 33. Qxc6+ {[%emt 0:00:05]} Kb8 {[%emt 0:00:05]} 34. Rb1+ {[%emt 0:00:07]} Ka7 {[%emt 0:00:03]} 35. Qb7# {[%emt 0:00:08]} 1-0

[Event "WYCC 2018 G14"]
[Site "Halkidiki"]
[Date "2018.10.27"]
[Round "8"]
[White "Lehaci, Miruna-Daria"]
[Black "Kumar, Arya"]
[Result "1-0"]
[ECO "B12"]
[WhiteElo "1933"]
[BlackElo "1619"]
[Annotator "NA"]
[PlyCount "63"]
[EventDate "2018.10.20"]
[EventType "swiss"]
[EventCountry "GRE"]
[SourceTitle "playchess.com"]
[Source "ChessBase"]
[SourceQuality "1"]
[TimeControl "40/5400+30:1800+30"]

1. e4 {[%emt 0:00:00]} c6 {[%emt 0:00:00]} 2. d4 {[%emt 0:00:00]} d5 {[%emt 0:00:00]} 3. e5 {[%emt 0:00:00]} Bf5 {[%emt 0:00:00]} 4. c4 {[%emt 0:00:00]} e6 {[%emt 0:00:00]} 5. Nc3 {[%emt 0:00:00]} Ne7 {[%emt 0:00:20]} 6. a3 {[%emt 0:00:00]} Nd7 {[%emt 0:00:34]} 7. c5 {[%emt 0:00:00]} a5 {[%emt 0:06:22]} 8. Be3 {[%emt 0:00:18]} b6 {[%emt 0:02:17]} 9. b4 {[%emt 0:00:06]} axb4 {[%emt 0:08:02]} 10. axb4 {[%emt 0:00:09]} Rxa1 {[%emt 0:00:05]} 11. Qxa1 {[%emt 0:00:04]} bxc5 {[%emt 0:00:06]} 12. bxc5 {[%emt 0:00:28]} f6 {[%emt 0:04:40]} 13. exf6 {[%emt 0:02:43]} gxf6 {[%emt 0:01:02]} 14. Nge2 {[%emt 0:07:58]} e5 {[%emt 0:07:18]} 15. Ng3 {[%emt 0:01:28]} Bg6 {[%emt 0:01:33]} 16. Be2 {[%emt 0:06:09]} h5 {[%emt 0:04:39]} 17. h4 {[%emt 0:00:45]} Nf5 {[%emt 0:04:46]} 18. Nxf5 {[%emt 0:04:47]} Bxf5 {[%emt 0:00:08]} 19. Qa6 {[%emt 0:13:37]} Nb8 {[%emt 0:11:17]} 20. Qa4 {[%emt 0:02:00]} Bg6 {[%emt 0:09:07]} 21. O-O {[%emt 0:06:19]} Qd7 {[%emt 0:06:50]} 22. Qa8 {[%emt 0:02:33]} Qd8 {[%emt 0:08:48]} 23. Na2 {[%emt 0:20:22]} Bf5 {[%emt 0:06:08]} 24. Nb4 {[%emt 0:01:00]} Bd7 {[%emt 0:00:16]} 25. Rb1 {[%emt 0:00:34]} Be7 {[%emt 0:03:20]} 26. Nxd5 {[%emt 0:00:41]} Kf7 {[%emt 0:00:48]} 27. Nxe7 {[%emt 0:00:05]} Qxe7 {[%emt 0:00:47]} 28. Rxb8 {[%emt 0:00:37]} Rxb8 {[%emt 0:00:09]} 29. Qxb8 {[%emt 0:00:05]} exd4 {[%emt 0:00:10]} 30. Bxh5+ {[%emt 0:00:13]} Kg7 {[%emt 0:00:47]} 31. Qg3+ {[%emt 0:00:11]} Kh8 {[%emt 0:01:02]} 32. Bxd4 {[%emt 0:00:18]} 1-0

[Event "WYCC 2018 G14"]
[Site "Halkidiki"]
[Date "2018.10.27"]
[Round "8"]
[White "Kuhar, Larisa"]
[Black "Yedigaryan, Asya"]
[Result "1-0"]
[ECO "B54"]
[WhiteElo "1916"]
[BlackElo "1726"]
[Annotator "NA"]
[PlyCount "81"]
[EventDate "2018.10.20"]
[EventType "swiss"]
[EventCountry "GRE"]
[SourceTitle "playchess.com"]
[Source "ChessBase"]
[SourceQuality "1"]
[TimeControl "40/5400+30:1800+30"]

1. e4 {[%emt 0:00:00]} c5 {[%emt 0:00:00]} 2. Nf3 {[%emt 0:00:00]} d6 {[%emt 0:00:00]} 3. d4 {[%emt 0:00:00]} cxd4 {[%emt 0:00:00]} 4. Nxd4 {[%emt 0:00:00]} e6 {[%emt 0:00:00]} 5. Nc3 {[%emt 0:00:22]} Ne7 {[%emt 0:00:54]} 6. Be2 {[%emt 0:02:20]} Nec6 {[%emt 0:00:07]} 7. Be3 {[%emt 0:01:35]} Be7 {[%emt 0:00:37]} 8. O-O {[%emt 0:01:42]} Nxd4 {[%emt 0:00:34]} 9. Bxd4 {[%emt 0:01:15]} O-O {[%emt 0:00:12]} 10. f4 {[%emt 0:02:09]} Nc6 {[%emt 0:00:07]} 11. Be3 {[%emt 0:00:26]} a6 {[%emt 0:01:32]} 12. Bf3 {[%emt 0:08:15]} Bf6 {[%emt 0:10:33]} 13. Na4 {[%emt 0:10:45]} Rb8 {[%emt 0:22:43]} 14. Bb6 {[%emt 0:02:33]} Qd7 {[%emt 0:07:35]} 15. c4 {[%emt 0:10:00]} Bd8 {[%emt 0:06:42]} 16. Qd2 {[%emt 0:05:33]} Bxb6+ {[%emt 0:04:45]} 17. Nxb6 {[%emt 0:00:11]} Qc7 {[%emt 0:00:13]} 18. Qf2 {[%emt 0:05:21]} Nb4 {[%emt 0:06:25]} 19. Rfd1 {[%emt 0:01:43]} Qc5 {[%emt 0:01:30]} 20. a3 {[%emt 0:00:49]} Nc2 {[%emt 0:02:31]} 21. Qxc5 {[%emt 0:10:02]} dxc5 {[%emt 0:00:08]} 22. Rac1 {[%emt 0:00:05]} Nd4 {[%emt 0:00:49]} 23. b4 {[%emt 0:00:18]} Nxf3+ {[%emt 0:01:25]} 24. gxf3 {[%emt 0:00:28]} cxb4 {[%emt 0:00:15]} 25. axb4 {[%emt 0:00:16]} e5 {[%emt 0:02:18]} 26. Nxc8 {[%emt 0:06:16]} Rfxc8 {[%emt 0:00:30]} 27. fxe5 {[%emt 0:00:17]} Re8 {[%emt 0:00:18]} 28. Rd5 {[%emt 0:00:53]} h6 {[%emt 0:01:23]} 29. Kf2 {[%emt 0:02:11]} Re6 {[%emt 0:01:23]} 30. c5 {[%emt 0:00:54]} g5 {[%emt 0:01:41]} 31. Rcd1 {[%emt 0:05:02]} Rbe8 {[%emt 0:01:17]} 32. Rd7 {[%emt 0:01:23]} R8e7 {[%emt 0:04:57]} 33. Rxe7 {[%emt 0:00:53]} Rxe7 {[%emt 0:00:04]} 34. Ke3 {[%emt 0:01:50]} Kg7 {[%emt 0:05:20]} 35. Rd6 {[%emt 0:00:48]} Rc7 {[%emt 0:04:00]} 36. Kd4 {[%emt 0:01:12]} h5 {[%emt 0:00:28]} 37. h3 {[%emt 0:00:35]} Rc6 {[%emt 0:01:09]} 38. Kd5 {[%emt 0:00:34]} Rc7 {[%emt 0:00:05]} 39. e6 {[%emt 0:00:32]} Re7 {[%emt 0:00:40]} 40. Rd7 {[%emt 0:00:00]} Rxe6 {[%emt 0:00:00]} 41. e5 {[%emt 0:02:22]} 1-0

[Event "WYCC 2018 G14"]
[Site "Halkidiki"]
[Date "2018.10.27"]
[Round "8"]
[White "Baiburina, Kamilla"]
[Black "Mironenko, Galina"]
[Result "1/2-1/2"]
[ECO "B27"]
[WhiteElo "1907"]
[BlackElo "2053"]
[Annotator "NA"]
[PlyCount "59"]
[EventDate "2018.10.20"]
[EventType "swiss"]
[EventCountry "GRE"]
[SourceTitle "playchess.com"]
[Source "ChessBase"]
[SourceQuality "1"]
[TimeControl "40/5400+30:1800+30"]

1. e4 {[%emt 0:00:00]} c5 {[%emt 0:00:00]} 2. Nf3 {[%emt 0:00:00]} g6 {[%emt 0:00:00]} 3. c3 {[%emt 0:00:00]} Bg7 {[%emt 0:00:00]} 4. d4 {[%emt 0:00:14]} cxd4 {[%emt 0:00:00]} 5. cxd4 {[%emt 0:00:05]} d5 {[%emt 0:00:00]} 6. e5 {[%emt 0:04:37]} Nh6 {[%emt 0:00:04]} 7. Be2 {[%emt 0:04:33]} Bf5 {[%emt 0:03:15]} 8. O-O {[%emt 0:02:35]} Nc6 {[%emt 0:01:44]} 9. a3 {[%emt 0:04:40]} O-O {[%emt 0:03:23]} 10. Nc3 {[%emt 0:06:26]} Be4 {[%emt 0:02:16]} 11. Be3 {[%emt 0:04:48]} Nf5 {[%emt 0:03:05]} 12. Qd2 {[%emt 0:06:58]} Na5 {[%emt 0:06:46]} 13. Qd1 {[%emt 0:08:15]} Nxe3 {[%emt 0:05:14]} 14. fxe3 {[%emt 0:00:47]} Bh6 {[%emt 0:01:09]} 15. Kf2 {[%emt 0:04:06]} e6 {[%emt 0:09:03]} 16. b4 {[%emt 0:04:33]} Bxf3 {[%emt 0:01:19]} 17. gxf3 {[%emt 0:03:04]} Rc8 {[%emt 0:14:02]} 18. Na4 {[%emt 0:06:21]} Nc4 {[%emt 0:02:18]} 19. Bxc4 {[%emt 0:00:35]} Rxc4 {[%emt 0:01:13]} 20. f4 Qh4+ {[%emt 0:06:46]} 21. Kg2 {[%emt 0:07:42]} g5 {[%emt 0:06:21]} 22. Qd2 {[%emt 0:07:24]} Rfc8 {[%emt 0:02:57]} 23. Ra2 {[%emt 0:03:44]} Qg4+ {[%emt 0:04:55]} 24. Kh1 {[%emt 0:00:45]} Qf5 {[%emt 0:01:38]} 25. Qg2 {[%emt 0:07:08]} Rc2 {[%emt 0:06:54]} 26. Rxc2 {[%emt 0:01:16]} Rxc2 {[%emt 0:00:27]} 27. fxg5 {[%emt 0:03:16]} Rxg2 {[%emt 0:03:19]} 28. Rxf5 {[%emt 0:00:06]} Rxg5 {[%emt 0:02:09]} 29. Rf3 {[%emt 0:01:47]} Rg4 {[%emt 0:06:18]} 30. Nc5 {[%emt 0:01:00]} 1/2-1/2

[Event "WYCC 2018 G14"]
[Site "Halkidiki"]
[Date "2018.10.27"]
[Round "8"]
[White "Nguyen, Thien Ngan"]
[Black "Krasteva, Beloslava"]
[Result "0-1"]
[ECO "B84"]
[WhiteElo "1888"]
[BlackElo "2089"]
[Annotator "NA"]
[PlyCount "84"]
[EventDate "2018.10.20"]
[EventType "swiss"]
[EventCountry "GRE"]
[SourceTitle "playchess.com"]
[Source "ChessBase"]
[SourceQuality "1"]
[TimeControl "40/5400+30:1800+30"]

1. e4 {[%emt 0:00:00]} c5 {[%emt 0:00:00]} 2. Nf3 {[%emt 0:00:00]} d6 {[%emt 0:00:00]} 3. d4 {[%emt 0:00:00]} cxd4 {[%emt 0:00:07]} 4. Nxd4 {[%emt 0:00:00]} Nf6 {[%emt 0:00:12]} 5. Nc3 {[%emt 0:00:11]} a6 {[%emt 0:00:11]} 6. Be2 {[%emt 0:00:23]} e6 {[%emt 0:00:42]} 7. O-O {[%emt 0:00:35]} Be7 {[%emt 0:00:34]} 8. a4 {[%emt 0:00:18]} Qc7 {[%emt 0:02:13]} 9. Be3 {[%emt 0:02:16]} b6 {[%emt 0:01:33]} 10. f4 {[%emt 0:04:02]} O-O $11 {[%emt 0:02:01] LiveBook: 135 Games} 11. Bd3 {[%emt 0:03:34]} Bb7 {[%emt 0:01:28]} 12. Kh1 {[%emt 0:02:46]} Nbd7 {[%emt 0:01:30]} 13. Qe1 {[%emt 0:00:46]} Nc5 {[%emt 0:03:58]} 14. Bg1 {[%emt 0:00:36]} d5 {[%emt 0:05:17]} 15. e5 {[%emt 0:03:57]} Nfe4 {[%emt 0:00:40]} 16. Bxe4 {[%emt 0:00:30]} Nxe4 {[%emt 0:00:30]} 17. Nxe4 dxe4 {[%emt 0:00:34]} 18. Qg3 {[%emt 0:04:12]} Rfd8 {[%emt 0:11:53]} 19. f5 {[%emt 0:04:16]} Bd5 {[%emt 0:10:25]} 20. b3 {[%emt 0:06:51]} b5 {[%emt 0:06:12]} 21. axb5 {[%emt 0:05:06]} axb5 {[%emt 0:00:05]} 22. Rac1 {[%emt 0:12:29]} b4 {[%emt 0:04:25]} 23. c4 {[%emt 0:05:41]} bxc3 {[%emt 0:02:06]} 24. Rxc3 {[%emt 0:02:14]} Qb7 {[%emt 0:02:48]} 25. Be3 {[%emt 0:11:31]} Bf8 {[%emt 0:04:19]} 26. f6 {[%emt 0:05:28]} g6 {[%emt 0:03:50]} 27. Qh3 {[%emt 0:02:51]} Rdc8 {[%emt 0:02:47]} 28. Rxc8 {[%emt 0:11:02]} Rxc8 {[%emt 0:00:17]} 29. Rf4 {[%emt 0:02:26]} Qb4 {[%emt 0:08:12]} 30. Kg1 {[%emt 0:07:26]} Rc3 {[%emt 0:03:14]} 31. Kf2 {[%emt 0:01:59]} Rxe3 {[%emt 0:02:27]} 32. Qxe3 {[%emt 0:00:55]} Bc5 {[%emt 0:00:13]} 33. Kg3 {[%emt 0:01:30]} Bxd4 {[%emt 0:01:37]} 34. Rxe4 {[%emt 0:00:06]} Bxe4 {[%emt 0:00:36]} 35. Qxe4 {[%emt 0:00:06]} Qxb3+ {[%emt 0:00:40]} 36. Kh4 {[%emt 0:00:17]} Qd5 {[%emt 0:00:34]} 37. Qc2 {[%emt 0:00:20]} Qc5 {[%emt 0:00:51]} 38. Qe4 {[%emt 0:01:13]} Bxe5 {[%emt 0:00:32]} 39. Kh3 {[%emt 0:00:47]} Bxf6 {[%emt 0:00:32]} 40. Qa8+ {[%emt 0:00:00]} Kg7 {[%emt 0:00:00]} 41. Qe8 {[%emt 0:00:39]} Qf5+ {[%emt 0:00:28]} 42. g4 {[%emt 0:00:21]} Qf3# {[%emt 0:00:06]} 0-1

[Event "WYCC 2018 G14"]
[Site "Halkidiki"]
[Date "2018.10.27"]
[Round "8"]
[White "Lomaia, Diana"]
[Black "Hernandez Guerra, Luna Yue"]
[Result "1-0"]
[ECO "C03"]
[WhiteElo "1876"]
[BlackElo "1659"]
[Annotator "NA"]
[PlyCount "107"]
[EventDate "2018.10.20"]
[EventType "swiss"]
[EventCountry "GRE"]
[SourceTitle "playchess.com"]
[Source "ChessBase"]
[SourceQuality "1"]
[TimeControl "40/5400+30:1800+30"]

1. e4 {[%emt 0:00:00]} e6 {[%emt 0:00:00]} 2. d4 {[%emt 0:00:00]} d5 {[%emt 0:00:00]} 3. Nd2 {[%emt 0:00:00]} Be7 {[%emt 0:00:00]} 4. Ngf3 {[%emt 0:03:27]} Nf6 {[%emt 0:01:25]} 5. e5 {[%emt 0:00:29]} Nfd7 {[%emt 0:00:09]} 6. Bd3 {[%emt 0:04:02]} c5 {[%emt 0:01:33]} 7. c3 {[%emt 0:00:33]} Nc6 {[%emt 0:00:10]} 8. Qe2 {[%emt 0:13:09]} Qc7 {[%emt 0:08:36]} 9. O-O {[%emt 0:01:51]} g5 {[%emt 0:10:23]} 10. Qe3 {[%emt 0:13:50]} g4 {[%emt 0:07:48]} 11. Ne1 {[%emt 0:03:07]} b6 {[%emt 0:05:18]} 12. Nc2 {[%emt 0:06:45]} Bb7 {[%emt 0:04:13]} 13. f4 {[%emt 0:05:48]} O-O-O {[%emt 0:17:54]} 14. Kh1 {[%emt 0:06:59]} Rdg8 {[%emt 0:07:02]} 15. Rb1 {[%emt 0:12:20]} Bf8 {[%emt 0:09:43]} 16. f5 {[%emt 0:05:14]} Ne7 {[%emt 0:05:13]} 17. Ne1 {[%emt 0:04:55]} h5 {[%emt 0:03:38]} 18. fxe6 {[%emt 0:09:39]} fxe6 {[%emt 0:00:15]} 19. Rf7 {[%emt 0:00:05]} Bh6 {[%emt 0:02:53]} 20. Qg1 {[%emt 0:00:20]} Qd8 {[%emt 0:03:07]} 21. Nf1 {[%emt 0:01:22]} Qe8 {[%emt 0:01:57]} 22. Rf2 {[%emt 0:01:05]} h4 {[%emt 0:01:55]} 23. Re2 {[%emt 0:00:31]} h3 {[%emt 0:01:49]} 24. g3 {[%emt 0:00:48]} Bg7 {[%emt 0:01:35]} 25. Bf4 {[%emt 0:00:06]} Rh5 {[%emt 0:01:23]} 26. Nd2 {[%emt 0:02:39]} a6 {[%emt 0:00:51]} 27. b4 {[%emt 0:00:16]} c4 {[%emt 0:00:46]} 28. Bc2 {[%emt 0:00:01]} b5 {[%emt 0:00:58]} 29. a4 {[%emt 0:00:27]} Nc6 {[%emt 0:00:05]} 30. axb5 {[%emt 0:01:43]} axb5 {[%emt 0:00:06]} 31. Qf2 {[%emt 0:00:59]} Rf8 {[%emt 0:00:15]} 32. Qg1 {[%emt 0:01:21]} Rhh8 {[%emt 0:02:35]} 33. Ra1 {[%emt 0:00:44]} Kc7 {[%emt 0:01:06]} 34. Nb1 {[%emt 0:01:08]} Qe7 {[%emt 0:01:07]} 35. Bg6 {[%emt 0:00:21]} Ra8 {[%emt 0:00:44]} 36. Rxa8 {[%emt 0:00:29]} Bxa8 {[%emt 0:00:06]} 37. Na3 {[%emt 0:00:44]} Kb6 {[%emt 0:00:14]} 38. Qf2 {[%emt 0:00:26]} Nf8 {[%emt 0:00:46]} 39. Bb1 {[%emt 0:00:20]} Nh7 {[%emt 0:00:39]} 40. Bxh7 {[%emt 0:00:00]} Rxh7 {[%emt 0:00:00]} 41. Kg1 {[%emt 0:04:04]} Rh8 {[%emt 0:03:37]} 42. Ra2 {[%emt 0:02:32]} Bb7 {[%emt 0:00:22]} 43. Qe2 {[%emt 0:00:52]} Ra8 {[%emt 0:04:57]} 44. Nec2 {[%emt 0:01:53]} Qf7 {[%emt 0:02:01]} 45. Qxg4 {[%emt 0:02:16]} Rh8 {[%emt 0:00:59]} 46. Ne3 {[%emt 0:00:36]} Bf8 {[%emt 0:01:06]} 47. Rf2 {[%emt 0:01:06]} Qd7 {[%emt 0:02:58]} 48. Bg5 {[%emt 0:02:14]} Bc8 {[%emt 0:01:32]} 49. Nac2 {[%emt 0:04:43]} Qa7 {[%emt 0:01:50]} 50. Nxd5+ {[%emt 0:02:20]} exd5 {[%emt 0:01:29]} 51. Qxc8 {[%emt 0:00:03]} Bg7 {[%emt 0:01:41]} 52. Qe6 {[%emt 0:01:17]} Qa2 {[%emt 0:01:15]} 53. Ne3 {[%emt 0:01:34]} Bf8 {[%emt 0:02:35]} 54. Rxa2 {[%emt 0:00:17]} 1-0

[Event "WYCC 2018 G14"]
[Site "Halkidiki"]
[Date "2018.10.27"]
[Round "8"]
[White "Kasaeva, Sofiia"]
[Black "Tryggestad, Linnea Garberg"]
[Result "1/2-1/2"]
[ECO "B44"]
[WhiteElo "1874"]
[BlackElo "1604"]
[Annotator "NA"]
[PlyCount "85"]
[EventDate "2018.10.20"]
[EventType "swiss"]
[EventCountry "GRE"]
[SourceTitle "playchess.com"]
[Source "ChessBase"]
[SourceQuality "1"]
[TimeControl "40/5400+30:1800+30"]

1. e4 {[%emt 0:00:00]} c5 {[%emt 0:00:00]} 2. Nf3 {[%emt 0:00:00]} e6 {[%emt 0:00:00]} 3. d4 {[%emt 0:00:00]} cxd4 {[%emt 0:00:00]} 4. Nxd4 {[%emt 0:00:00]} Nc6 {[%emt 0:00:00]} 5. Nb5 {[%emt 0:04:37]} d6 {[%emt 0:00:38]} 6. c4 {[%emt 0:01:20]} a6 {[%emt 0:00:43]} 7. N5a3 {[%emt 0:03:13]} Nf6 {[%emt 0:02:03]} 8. Nc3 {[%emt 0:01:10]} Be7 {[%emt 0:01:38]} 9. Be2 {[%emt 0:06:20]} O-O {[%emt 0:01:18]} 10. O-O {[%emt 0:00:32]} Qc7 {[%emt 0:01:57]} 11. Be3 {[%emt 0:02:18]} Bd7 {[%emt 0:05:26]} 12. f4 {[%emt 0:01:57]} Rfe8 {[%emt 0:11:59]} 13. Bf3 {[%emt 0:17:58]} Bf8 {[%emt 0:09:25]} 14. Qd2 {[%emt 0:01:23]} Rac8 {[%emt 0:30:20]} 15. Rac1 Ne7 16. Rfd1 {[%emt 0:17:12]} Ng6 {[%emt 0:03:07]} 17. Qf2 {[%emt 0:03:28]} Bc6 {[%emt 0:03:23]} 18. g3 {[%emt 0:08:31]} Re7 {[%emt 0:05:53]} 19. b4 {[%emt 0:06:47]} Ree8 {[%emt 0:06:02]} 20. Qb2 {[%emt 0:11:40]} Red8 {[%emt 0:02:43]} 21. b5 {[%emt 0:01:43]} axb5 {[%emt 0:00:49]} 22. cxb5 {[%emt 0:00:19]} Be8 {[%emt 0:02:13]} 23. Nd5 {[%emt 0:03:51]} Qb8 {[%emt 0:00:50]} 24. Rxc8 {[%emt 0:04:34]} Qxc8 {[%emt 0:01:27]} 25. Rc1 {[%emt 0:01:54]} Qa8 26. Nc7 Qb8 {[%emt 0:01:55]} 27. b6 {[%emt 0:02:04]} Bc6 {[%emt 0:00:51]} 28. Qg2 {[%emt 0:00:36]} d5 {[%emt 0:01:39]} 29. exd5 {[%emt 0:00:28]} Bxd5 {[%emt 0:01:31]} 30. Nab5 {[%emt 0:00:29]} Bxf3 {[%emt 0:00:33]} 31. Qxf3 {[%emt 0:00:07]} Nd5 {[%emt 0:00:27]} 32. Nxd5 {[%emt 0:00:43]} Rxd5 {[%emt 0:00:58]} 33. Nc7 {[%emt 0:00:07]} Rd7 {[%emt 0:00:53]} 34. a4 {[%emt 0:00:45]} Ne7 {[%emt 0:01:53]} 35. Bc5 {[%emt 0:00:45]} Nc6 {[%emt 0:01:17]} 36. Bxf8 {[%emt 0:00:26]} Qxf8 {[%emt 0:01:10]} 37. Qc3 {[%emt 0:00:38]} Qd8 {[%emt 0:00:46]} 38. Qf3 {[%emt 0:00:31]} Rd3 {[%emt 0:00:39]} 39. Qe4 {[%emt 0:00:30]} Rd4 {[%emt 0:01:16]} 40. Qc2 {[%emt 0:00:00]} Rd2 {[%emt 0:00:00]} 41. Qc4 {[%emt 0:02:42]} Rd4 {[%emt 0:03:40]} 42. Qc2 {[%emt 0:18:02]} Rd2 {[%emt 0:00:37]} 43. Qe4 {[%emt 0:00:50]} 1/2-1/2

[Event "WYCC 2018 G14"]
[Site "Halkidiki"]
[Date "2018.10.27"]
[Round "8"]
[White "Behzad Nazif, Parva"]
[Black "Figueroa Bernal, Julia Dennis"]
[Result "1-0"]
[ECO "D11"]
[WhiteElo "1859"]
[BlackElo "1650"]
[Annotator "NA"]
[PlyCount "73"]
[EventDate "2018.10.20"]
[EventType "swiss"]
[EventCountry "GRE"]
[SourceTitle "playchess.com"]
[Source "ChessBase"]
[SourceQuality "1"]
[TimeControl "40/5400+30:1800+30"]

1. d4 d5 2. c4 c6 3. Nf3 Nf6 4. e3 a6 5. Bd3 b5 6. b3 Bg4 7. O-O Nbd7 8. Bb2 e6 9. Nbd2 Bb4 10. Qc2 O-O 11. Ne5 Bxd2 12. Nxg4 Nxg4 13. Qxd2 f5 14. f3 Ngf6 15. Qc2 Rc8 16. e4 g6 17. Qe2 Nh5 18. Qd2 Ndf6 19. Ba3 dxe4 20. Bc2 c5 21. fxe4 fxe4 22. Rad1 b4 23. Bb2 Qc7 24. Qg5 Kg7 25. dxc5 h6 26. Qe5 Qxe5 27. Bxe5 Kg8 28. Bd6 Rf7 29. Rfe1 Ng7 30. Bxe4 Nxe4 31. Rxe4 a5 32. Rf1 Rd7 33. Rf6 Kh7 34. Ref4 e5 35. Re4 Ne8 36. Re6 Nxd6 37. cxd6 1-0